bitfinex-derivatives/quotes_SOLF0:USTF0_20250111
["timestamp","ask_amount","ask_price","bid_price","bid_amount"]
[1736617090329,2.6807,186.6,186.57,2.6811]
[1736617091327,2.6807,186.6,186.54,7.17018076]
[1736617091328,7.17018076,186.59,186.54,7.17018076]
[1736617091535,2.6813,186.56,186.53,2.6816]
[1736617093135,7.17018076,186.55,186.53,2.6816]
[1736617094435,9.85158076,186.55,186.52,2.6818]
[1736617097026,9.85158076,186.55,186.51,2.6819]
[1736617100442,7.17018076,186.53,186.47,1.5942]
[1736617100743,7.17018076,186.51,186.47,1.5942]
[1736617102235,9.85218076,186.51,186.48,2.6824]
[1736617103835,9.85218076,186.51,186.47,2.6825]
[1736617104939,2.6823,186.5,186.46,5.9063]
[1736617109142,2.6823,186.5,186.46,4.2521]
[1736617109446,2.6823,186.5,186.46,2.6827]
[1736617109738,7.17018076,186.49,186.43,83.89596902]
[1736617109937,2.6824,186.48,186.43,83.89596902]
[1736617110841,2.6824,186.48,186.45,2.6828]
[1736617111043,9.85248076,186.49,186.45,2.6828]
[1736617112439,124.91526974,186.56,186.43,83.89596902]
[1736617112633,7.17018076,186.51,186.48,2.6824]
[1736617113843,9.85228076,186.51,186.48,2.6824]
[1736617123254,7.17018076,186.51,186.45,7.17018076]
[1736617123449,2.6819,186.52,186.49,2.6822]
[1736617127955,9.85188076,186.53,186.5,2.6821]
[1736617128158,7.17018076,186.55,186.47,7.17018076]
[1736617128355,7.17018076,186.55,186.48,1.6533]
[1736617128759,2.6816,186.54,186.51,2.6819]
[1736617129357,127.59656974,186.56,186.53,2.6817]
[1736617129560,134.7667505,186.56,186.53,2.6817]
[1736617130066,132.0854505,186.56,186.54,2.6815]
[1736617131063,132.0854505,186.56,186.53,2.6817]
[1736617131463,134.7667505,186.56,186.53,2.6817]
[1736617132064,132.0854505,186.56,186.49,8.71548076]
[1736617132361,2.6815,186.55,186.51,2.682]
[1736617132965,2.6815,186.55,186.49,8.71548076]
[1736617133167,2.6815,186.55,186.52,2.6818]
[1736617134464,9.85188076,186.54,186.5,2.6821]
[1736617140670,2.6818,186.52,186.49,2.6822]
[1736617140874,7.17018076,186.52,186.48,1.6533]
[1736617141268,2.6821,186.51,186.48,1.6533]
[1736617143072,2.6821,186.51,186.48,4.3357]
[1736617146166,124.91526974,186.56,186.48,1.6533]
[1736617146372,7.17018076,186.55,186.48,8.82348076]
[1736617146775,9.85168076,186.55,186.51,2.6819]
[1736617147674,2.6815,186.55,186.51,2.6819]
[1736617147975,9.85168076,186.55,186.51,2.6819]
[1736617148367,9.85168076,186.55,186.48,8.82348076]
[1736617148573,9.85168076,186.55,186.52,2.6818]
[1736617149277,124.91526974,186.56,186.5,7.17018076]
[1736617149479,134.7667505,186.56,186.5,7.17018076]
[1736617150083,124.91526974,186.56,186.5,7.17018076]
[1736617150977,2.6811,186.57,186.5,7.17018076]
[1736617151478,5.4,186.6,186.52,7.17018076]
[1736617151684,7.17018076,186.58,186.55,2.6813]
[1736617152672,1.6591,186.62,186.52,7.17018076]
[1736617152880,7.17018076,186.6,186.54,7.17018076]
[1736617153481,7.17018076,186.6,186.57,2.681]
[1736617157971,2.6806,186.61,186.57,2.681]
[1736617158176,9.85078076,186.61,186.57,2.681]
[1736617161181,12.14620812,186.63,186.56,7.17018076]
[1736617161182,19.31638888,186.63,186.56,7.17018076]
[1736617161381,19.31638888,186.63,186.57,1.673]
[1736617161581,11.65310138,186.63,186.58,7.17018076]
[1736617162175,7.17018076,186.63,186.58,7.17018076]
[1736617162381,7.17018076,186.65,186.6,7.17018076]
[1736617163090,7.17018076,186.67,186.6,7.17018076]
[1736617163683,15.2561843,186.71,186.62,7.17018076]
[1736617163988,7.17018076,186.69,186.65,2.6799]
[1736617165290,15.2561843,186.71,186.67,2.6796]
[1736617165291,17.9352843,186.71,186.67,2.6796]
[1736617165592,17.9352843,186.71,186.64,7.17018076]
[1736617165593,7.17018076,186.7,186.64,7.17018076]
[1736617165793,15.2561843,186.71,186.68,2.6794]
[1736617165986,15.2561843,186.71,186.66,7.17018076]
[1736617166482,15.2561843,186.71,186.68,7.17018076]
[1736617167091,15.2561843,186.71,186.7,2.6792]
[1736617167490,7.6632875,186.71,186.7,2.6792]
[1736617167994,7.17018076,186.71,186.63,7.17018076]
[1736617168193,9.84968076,186.69,186.63,7.17018076]
[1736617168492,9.84968076,186.69,186.65,2.6798]
[1736617169291,2.6796,186.68,186.64,2.6801]
[1736617174294,2.6796,186.68,186.63,7.17018076]
[1736617174503,7.17018076,186.69,186.63,7.17018076]
[1736617175203,9.84958076,186.69,186.65,2.6799]
[1736617176105,2.6796,186.68,186.64,2.6801]
[1736617176404,7.17018076,186.69,186.57,5.4]
[1736617176602,7.17018076,186.67,186.61,2.6804]
[1736617176798,7.17018076,186.65,186.59,7.17018076]
[1736617177006,7.17018076,186.63,186.57,7.17018076]
[1736617177202,2.6805,186.62,186.58,2.6808]
[1736617178207,2.6807,186.6,186.56,4.2602]
[1736617179809,2.6807,186.6,186.57,2.6811]
[1736617180198,9.85078076,186.61,186.57,2.6811]
[1736617181809,2.6806,186.61,186.57,2.6811]
[1736617182003,9.85058076,186.63,186.59,2.6807]
[1736617182305,7.17018076,186.63,186.57,7.17018076]
[1736617183207,9.85048076,186.63,186.59,2.6808]
[1736617187205,2.6806,186.61,186.57,2.681]
[1736617187511,7.17018076,186.61,186.55,83.85607129]
[1736617188105,2.6807,186.6,186.57,2.6811]
[1736617189904,2.6808,186.59,186.56,2.6812]
[1736617192908,7.17018076,186.61,186.56,2.6812]
[1736617193108,2.6807,186.6,186.56,2.6812]
[1736617201811,2.6807,186.6,186.57,2.6811]
[1736617204519,7.17018076,186.59,186.51,31.33710846]
[1736617204710,7.17018076,186.57,186.51,31.33710846]
[1736617205515,7.17018076,186.57,186.52,7.17018076]
[1736617205816,15.22899055,186.66,186.54,7.17018076]
[1736617206015,7.17018076,186.62,186.56,7.17018076]
[1736617207211,2.6806,186.61,186.58,2.6809]
[1736617210221,9.85058076,186.62,186.59,2.6808]
[1736617212520,2.6806,186.61,186.58,2.681]
[1736617214425,9.85028076,186.64,186.61,2.6805]
[1736617214619,2.6801,186.64,186.61,2.6805]
[1736617219623,7.17018076,186.65,186.61,2.6805]
[1736617219831,9.85018076,186.65,186.61,2.6805]
[1736617220331,7.17018076,186.65,186.62,2.6804]
[1736617220531,7.17018076,186.65,186.6,7.17018076]
[1736617220830,7.17018076,186.67,186.62,2.6803]
[1736617221027,2.6799,186.66,186.62,2.6803]
[1736617221425,2.6799,186.66,186.63,2.6802]
[1736617222330,9.84988076,186.67,186.63,2.6802]
[1736617222529,9.84988076,186.67,186.64,2.6801]
[1736617222730,7.17018076,186.69,186.62,7.17018076]
[1736617223230,15.24081852,186.71,186.62,7.17018076]
[1736617223429,7.17018076,186.7,186.63,3.2519]
[1736617223730,7.17018076,186.7,186.66,2.6797]
[1736617223731,9.84958076,186.7,186.66,2.6797]
[1736617224122,7.17018076,186.7,186.63,3.2519]
[1736617224634,7.17018076,186.7,186.64,7.17018076]
[1736617225434,9.84958076,186.7,186.66,2.6797]
[1736617225930,9.84958076,186.7,186.64,7.17018076]
[1736617226533,2.6794,186.7,186.67,2.6797]
[1736617228428,15.24081852,186.71,186.67,2.6797]
[1736617228633,25.09009928,186.71,186.67,2.6797]
[1736617229232,15.24081852,186.71,186.7,2.6792]
[1736617229736,7.64733643,186.71,186.7,2.6792]
[1736617230240,10.27228209,186.73,186.68,7.17018076]
[1736617230536,2.6788,186.73,186.68,7.17018076]
[1736617230737,7.17018076,186.7,186.66,2.6798]
[1736617231938,9.84948076,186.7,186.66,2.6798]
[1736617233538,9.84948076,186.7,186.67,2.6796]
[1736617233739,7.17018076,186.72,186.66,7.17018076]
[1736617234339,9.84918076,186.72,186.66,7.17018076]
[1736617234539,9.84918076,186.72,186.66,0.57108676]
[1736617234940,9.84918076,186.72,186.68,2.6794]
[1736617235639,7.17018076,186.72,186.66,0.57108676]
[1736617235839,7.17018076,186.72,186.7,2.6792]
[1736617236039,7.17018076,186.72,186.66,0.57108676]
[1736617236343,9.84918076,186.72,186.68,2.6794]
[1736617236737,9.84918076,186.72,186.66,0.57108676]
[1736617237141,9.84918076,186.72,186.67,2.6796]
[1736617237342,9.84918076,186.72,186.66,0.57108676]
[1736617237744,9.84918076,186.72,186.68,2.6794]
[1736617238043,9.84918076,186.72,186.66,0.57108676]
[1736617238641,9.84918076,186.72,186.67,2.6796]
[1736617238841,9.84918076,186.72,186.66,0.57108676]
[1736617239545,9.84918076,186.72,186.68,2.6794]
[1736617239743,9.84918076,186.72,186.66,0.57108676]
[1736617240046,2.6794,186.7,186.65,1.664]
[1736617240346,7.17018076,186.7,186.64,7.17018076]
[1736617241346,7.17018076,186.7,186.66,2.6798]
[1736617242136,7.17018076,186.68,186.64,2.6801]
[1736617242339,7.17018076,186.66,186.6,76.66628536]
[1736617242543,7.17018076,186.64,186.6,76.66628536]
[1736617242746,2.6803,186.63,186.6,76.66628536]
[1736617244747,2.6804,186.62,186.6,76.66628536]
[1736617246648,2.6804,186.62,186.58,2.681]
[1736617247046,9.85058076,186.62,186.58,2.681]
[1736617248748,7.17018076,186.6,186.57,2.6811]
[1736617249052,7.17018076,186.6,186.54,1.5408]
[1736617249447,7.17018076,186.6,186.55,2.6813]
[1736617249448,2.6808,186.59,186.55,2.6813]
[1736617249749,7.17018076,186.6,186.54,1.5408]
[1736617250351,9.85088076,186.6,186.56,2.6811]
[1736617251048,9.85088076,186.6,186.57,2.6811]
[1736617251354,2.6807,186.6,186.57,2.6811]
[1736617261362,2.6802,186.64,186.59,2.6808]
[1736617261558,7.17018076,186.63,186.59,2.6808]
[1736617261759,7.17018076,186.63,186.56,1.5143]
[1736617262160,2.6805,186.62,186.58,2.6809]
[1736617263261,7.17018076,186.61,186.56,1.5143]
[1736617263468,2.6808,186.59,186.56,4.1956]
[1736617265064,7.17018076,186.57,186.5,1.621]
[1736617265264,7.17018076,186.57,186.51,7.17018076]
[1736617266066,2.6814,186.55,186.52,2.6818]
[1736617266368,7.17018076,186.57,186.5,1.621]
[1736617266553,7.17018076,186.57,186.5,8.79118076]
[1736617266861,2.6814,186.55,186.5,11.47318076]
[1736617267458,7.17018076,186.55,186.49,2.6822]
[1736617268971,14.61472707,186.59,186.47,10.43088076]
[1736617268972,7.17018076,186.53,186.47,10.43088076]
[1736617269168,2.682,186.51,186.47,11.44228076]
[1736617269868,2.682,186.51,186.47,4.2721]
[1736617270068,2.682,186.51,186.48,2.6824]
[1736617270468,2.682,186.51,186.47,1.5897]
[1736617271771,2.682,186.51,186.47,4.2723]
[1736617273170,7.17018076,186.53,186.47,1.5897]
[1736617273361,2.6817,186.54,186.48,7.17018076]
[1736617273567,7.1861,186.59,186.51,2.6819]
[1736617273766,7.17018076,186.56,186.51,2.6819]
[1736617274472,2.6815,186.55,186.51,2.6819]
[1736617275371,2.6817,186.54,186.5,2.6821]
[1736617275574,7.17018076,186.54,186.48,7.17018076]
[1736617277073,2.6818,186.53,186.49,2.6822]
[1736617278168,7.17018076,186.54,186.49,2.6822]
[1736617278373,2.6819,186.52,186.49,2.6822]
[1736617278973,2.6817,186.53,186.5,2.6821]
[1736617279273,7.17018076,186.54,186.49,7.17018076]
[1736617279780,132.08398248,186.56,186.49,7.17018076]
[1736617280168,2.6816,186.54,186.51,2.6819]
[1736617283773,5.4,186.63,186.53,7.17018076]
[1736617283973,12.96008825,186.63,186.53,7.17018076]
[1736617284173,7.17018076,186.59,186.53,7.17018076]
[1736617284371,9.85108076,186.59,186.55,2.6813]
[1736617284578,7.17018076,186.59,186.55,2.6813]
[1736617285171,2.6811,186.57,186.54,2.6815]
[1736617285376,7.17018076,186.57,186.51,7.17018076]
[1736617285578,7.17018076,186.55,186.49,7.17018076]
[1736617286474,2.6816,186.54,186.5,2.682]
[1736617287578,2.6818,186.53,186.5,2.682]
[1736617295286,2.6816,186.54,186.5,2.682]
[1736617298985,2.6811,186.58,186.54,2.6815]
[1736617299286,2.6811,186.58,186.53,7.17018076]
[1736617300193,2.6813,186.56,186.5,7.17018076]
[1736617300395,1.592,186.62,186.5,7.17018076]
[1736617300590,7.17018076,186.58,186.52,7.17018076]
[1736617300796,2.6811,186.58,186.52,7.17018076]
[1736617301096,7.17018076,186.61,186.54,7.17018076]
[1736617301396,7.17018076,186.61,186.55,1.6684]
[1736617301793,7.17018076,186.61,186.56,7.17018076]
[1736617302096,12.87523196,186.65,186.56,7.17018076]
[1736617302395,7.17018076,186.63,186.56,8.71428076]
[1736617303091,2.6804,186.62,186.58,2.6809]
[1736617305395,14.73026901,186.66,186.6,7.17018076]
[1736617305798,7.17018076,186.66,186.6,7.17018076]
[1736617306392,2.6801,186.65,186.61,2.6804]
[1736617306592,7.17018076,186.66,186.6,7.17018076]
[1736617307801,2.6798,186.66,186.62,2.6803]
[1736617308000,7.17018076,186.68,186.62,7.17018076]
[1736617309104,9.84988076,186.68,186.64,2.6801]
[1736617312710,7.17018076,186.68,186.63,1.5913]
[1736617313007,2.6794,186.69,186.65,2.6799]
[1736617316306,9.84958076,186.69,186.65,2.6799]
[1736617321803,7.17018076,186.67,186.59,7.17018076]
[1736617323108,2.68,186.65,186.62,2.6804]
[1736617323306,7.17018076,186.67,186.62,2.6804]
[1736617324310,2.6799,186.66,186.62,2.6804]
[1736617326811,2.68,186.65,186.62,2.6804]
[1736617327711,124.81393971,186.71,186.62,2.6804]
[1736617327906,2.6799,186.66,186.62,2.6804]
[1736617328412,2.6799,186.66,186.63,2.6802]
[1736617329813,124.81393971,186.71,186.61,7.17018076]
[1736617330012,9.84968076,186.69,186.63,7.17018076]
[1736617330615,9.84968076,186.69,186.64,2.68]
[1736617330814,9.84968076,186.69,186.63,7.17018076]
[1736617331313,9.84968076,186.69,186.65,2.6799]
[1736617331715,2.6796,186.68,186.65,2.6799]
[1736617334721,7.17018076,186.67,186.61,7.17018076]
[1736617335423,2.68,186.65,186.62,2.6803]
[1736617337816,2.6802,186.64,186.61,2.6805]
[1736617339521,2.6803,186.63,186.6,86.81492523]
[1736617339823,2.6803,186.63,186.61,7.46962798]
[1736617340922,2.6803,186.63,186.6,109.22380919]
[1736617341723,2.6803,186.63,186.61,5.18690991]
[1736617342924,2.6803,186.63,186.6,79.34529725]
[1736617343123,2.6804,186.62,186.6,76.66459725]
[1736617343315,2.6804,186.62,186.59,7.46962798]
[1736617344429,2.6804,186.62,186.58,10.15052798]
[1736617345629,9.85048076,186.63,186.6,2.6806]
[1736617345831,2.6803,186.63,186.6,2.6806]
[1736617346335,9.85048076,186.63,186.58,14.63980874]
[1736617346535,2.6805,186.62,186.58,10.15052798]
[1736617346833,7.17018076,186.63,186.58,10.15052798]
[1736617348138,7.17018076,186.63,186.58,2.6809]
[1736617348939,2.6805,186.62,186.58,2.6809]
[1736617352747,2.6809,186.59,186.56,10.15072798]
[1736617353447,7.17018076,186.59,186.56,7.46962798]
[1736617353648,7.17018076,186.59,186.54,106.56258118]
[1736617354148,2.6811,186.57,186.54,109.24408118]
[1736617354348,2.6811,186.57,186.54,86.83519722]
[1736617355251,2.6811,186.57,186.54,79.36556924]
[1736617356347,7.17018076,186.59,186.54,79.36556924]
[1736617356650,2.681,186.58,186.54,79.36556924]
[1736617359346,2.681,186.58,186.55,2.6813]
[1736617363455,2.681,186.58,186.54,79.36556924]
[1736617364750,2.681,186.58,186.55,9.85158076]
[1736617376769,5.4,186.65,186.55,7.17018076]
[1736617376968,5.4,186.65,186.57,2.6811]
[1736617376969,2.6808,186.6,186.57,2.6811]
[1736617377263,7.17018076,186.62,186.55,7.17018076]
[1736617377463,2.6809,186.59,186.55,9.85148076]
[1736617378667,7.17018076,186.6,186.55,7.17018076]
[1736617378967,7.17018076,186.6,186.54,32.56001194]
[1736617379768,7.17018076,186.6,186.54,10.15112798]
[1736617380465,2.6811,186.58,186.54,10.15112798]
[1736617381068,2.6811,186.58,186.54,2.6815]
[1736617382070,2.6812,186.57,186.54,10.15112798]
[1736617382265,7.17018076,186.56,186.54,7.46962798]
[1736617382570,2.6814,186.55,186.54,7.46962798]
[1736617382770,2.6814,186.55,186.54,2.798e-05]
[1736617383975,2.682,186.52,186.45,29.57906472]
[1736617384173,5.4,186.57,186.47,12.96998076]
[1736617384477,7.17018076,186.54,186.47,12.96998076]
[1736617385074,5.4,186.57,186.47,12.96998076]
[1736617385273,7.17018076,186.53,186.47,12.96998076]
[1736617386176,2.682,186.51,186.47,12.96998076]
[1736617390480,2.6821,186.5,186.47,5.7998]
[1736617390673,2.6821,186.5,186.47,3.1173]
[1736617396082,2.6821,186.5,186.47,5.7998]
[1736617404784,7.17018076,186.51,186.44,8.71748076]
[1736617405289,2.6825,186.48,186.44,11.40048076]
[1736617405789,2.6826,186.47,186.44,11.40048076]
[1736617409495,2.6823,186.49,186.46,7.17018076]
[1736617411191,2.6823,186.49,186.46,9.85288076]
[1736617413591,2.6824,186.48,186.46,9.85288076]
[1736617413992,132.10713724,186.51,186.46,9.85288076]
[1736617414191,2.6823,186.49,186.46,9.85288076]
[1736617429901,2.6822,186.5,186.46,9.85288076]
[1736617431903,1.6468,186.56,186.46,7.17018076]
[1736617432108,2.6819,186.52,186.46,7.17018076]
[1736617433212,2.6819,186.52,186.47,5.15718736]
[1736617433910,2.6819,186.52,186.46,29.57906472]
[1736617434107,2.6819,186.52,186.48,2.6823]
[1736617434713,2.6817,186.54,186.5,2.6821]
[1736617434908,7.17018076,186.55,186.5,2.6821]
[1736617435414,2.6817,186.53,186.5,2.6821]
[1736617436212,7.17018076,186.55,186.49,2.6822]
[1736617436418,2.6819,186.52,186.49,2.6822]
[1736617441119,2.6814,186.55,186.51,2.6819]
[1736617441923,2.6814,186.55,186.5,7.17018076]
[1736617442223,9.85138076,186.57,186.5,7.17018076]
[1736617442427,7.17018076,186.57,186.5,7.17018076]
[1736617442622,7.17018076,186.57,186.52,2.6818]
[1736617442822,2.6813,186.56,186.52,2.6818]
[1736617443726,2.6813,186.56,186.51,5.15416238]
[1736617443924,2.6813,186.56,186.53,2.6817]
[1736617448120,7.17018076,186.57,186.49,9.02237381]
[1736617448314,2.6817,186.53,186.49,9.02237381]
[1736617449423,2.6817,186.53,186.49,1.5553]
[1736617449726,2.6817,186.53,186.49,4.2375]
[1736617450626,2.6817,186.53,186.5,2.6821]
[1736617454823,7.17018076,186.55,186.49,1.5553]
[1736617455019,2.6816,186.54,186.51,2.682]
[1736617458427,7.17018076,186.56,186.5,7.17018076]
[1736617458630,2.681,186.58,186.52,7.17018076]
[1736617459931,2.681,186.58,186.55,2.6814]
[1736617460133,1.5392,186.66,186.52,7.17018076]
[1736617460431,7.17018076,186.6,186.57,2.6811]
[1736617461125,2.6814,186.55,186.52,7.46707381]
[1736617461332,7.17018076,186.56,186.52,7.46707381]
[1736617461930,2.6812,186.57,186.53,2.6816]
[1736617464134,9.85148076,186.56,186.53,2.6816]
[1736617465734,2.6814,186.55,186.52,2.6818]
[1736617474532,9.85148076,186.56,186.52,2.6818]
[1736617474734,9.85148076,186.56,186.53,2.6817]
[1736617479141,9.85148076,186.56,186.52,2.6818]
[1736617484447,2.6814,186.55,186.52,2.6818]
[1736617487249,2.6814,186.55,186.51,2.6819]
[1736617488146,2.6814,186.55,186.5,3.1666]
[1736617488346,2.6814,186.55,186.52,2.6818]
[1736617488652,7.17018076,186.56,186.5,10.63367381]
[1736617488952,7.17018076,186.56,186.53,2.6816]
[1736617489548,9.85148076,186.56,186.53,2.6816]
[1736617490551,9.85148076,186.56,186.5,33.04255777]
[1736617490751,2.6814,186.55,186.52,2.6818]
[1736617492346,7.17018076,186.56,186.5,10.63367381]
[1736617492651,9.85178076,186.54,186.51,2.682]
[1736617500355,7.17018076,186.52,186.5,7.46707381]
[1736617501158,2.682,186.51,186.5,7.46707381]
[1736617501551,2.682,186.51,186.48,76.7410691]
[1736617502357,2.6822,186.5,186.48,76.7410691]
[1736617503563,7.17018076,186.5,186.44,31.55595777]
[1736617504061,7.17018076,186.48,186.44,31.55595777]
[1736617504653,2.6826,186.47,186.44,4.3629]
[1736617506664,9.85258076,186.48,186.45,2.6828]
[1736617509166,2.6824,186.48,186.45,2.6828]
[1736617514764,5.4,186.54,186.47,2.6825]
[1736617514971,7.17018076,186.52,186.47,2.6825]
[1736617515674,2.6821,186.5,186.47,2.6825]
[1736617515869,124.8854122,186.58,186.47,7.17018076]
[1736617516069,7.17018076,186.53,186.47,7.17018076]
[1736617516373,9.85198076,186.53,186.49,2.6822]
[1736617518671,2.6818,186.53,186.49,2.6822]
[1736617518874,2.6819,186.52,186.48,2.6823]
[1736617519173,7.17018076,186.52,186.48,2.6823]
[1736617519674,2.6821,186.5,186.47,2.6825]
[1736617520775,9.85228076,186.5,186.47,2.6825]
[1736617521776,2.6823,186.49,186.46,2.6827]
[1736617522075,7.17018076,186.48,186.44,1.68]
[1736617522772,9.85258076,186.48,186.45,2.6828]
[1736617522977,7.17018076,186.46,186.42,29.87595777]
[1736617523677,9.85298076,186.46,186.41,2.6833]
[1736617523971,9.85298076,186.46,186.4,38.69113853]
[1736617524274,2.6829,186.45,186.42,2.6831]
[1736617524470,7.17018076,186.44,186.41,5.14124121]
[1736617525873,7.17018076,186.44,186.38,8.78388076]
[1736617526177,9.85328076,186.44,186.4,2.6835]
[1736617527476,9.85328076,186.44,186.39,2.6837]
[1736617527477,2.6832,186.43,186.39,2.6837]
[1736617530179,7.17018076,186.42,186.39,2.6837]
[1736617531981,9.85348076,186.42,186.39,2.6837]
[1736617535676,7.17018076,186.42,186.39,2.6837]
[1736617549591,7.17018076,186.42,186.4,2.6835]
[1736617549889,7.17018076,186.44,186.38,8.78388076]
[1736617550286,9.85318076,186.44,186.41,2.6833]
[1736617550590,7.17018076,186.42,186.41,2.6833]
[1736617552786,2.6834,186.41,186.38,4.2975]
[1736617552992,7.17018076,186.4,186.38,4.2975]
[1736617554786,7.17018076,186.4,186.38,1.6137]
[1736617554988,124.96331344,186.46,186.38,1.6137]
[1736617555194,7.17018076,186.42,186.38,1.6137]
[1736617555390,7.17018076,186.42,186.39,2.6836]
[1736617561997,7.17018076,186.4,186.38,7.46707381]
[1736617562295,2.6837,186.39,186.38,7.46707381]
[1736617562496,12.57018076,186.4,186.37,22.40888396]
[1736617562703,7.17018076,186.37,186.36,59.7570239]
[1736617562901,2.6841,186.36,186.35,89.36741662]
[1736617563101,2.6841,186.36,186.35,83.66749445]
[1736617563605,2.6844,186.35,186.3,2.6849]
[1736617563902,7.17018076,186.31,186.3,2.6849]
[1736617565203,2.6844,186.35,186.3,2.6849]
[1736617565506,7.17018076,186.31,186.3,2.6849]
[1736617568297,7.17018076,186.31,186.26,1.6614]
[1736617568609,7.17018076,186.29,186.26,4.347]
[1736617569110,7.17018076,186.29,186.26,1.6614]
[1736617569305,7.17018076,186.29,186.27,2.6854]
[1736617570008,7.17018076,186.29,186.21,78.48395007]
[1736617570309,125.05332982,186.34,186.21,78.48395007]
[1736617570310,7.17018076,186.25,186.21,78.48395007]
[1736617570707,7.17018076,186.25,186.22,2.686]
[1736617571108,7.17018076,186.23,186.21,76.81255007]
[1736617571309,7.17018076,186.23,186.2,1.5705]
[1736617571707,1.622,186.31,186.2,1.5705]
[1736617571708,7.17018076,186.21,186.2,1.5705]
[1736617572209,7.17018076,186.21,186.15,87.2939037]
[1736617573407,7.17018076,186.21,186.19,2.6866]
[1736617573908,7.17018076,186.23,186.17,7.17018076]
[1736617575113,2.6853,186.28,186.19,7.17018076]
[1736617575302,7.17018076,186.26,186.2,1.5321]
[1736617576003,7.17018076,186.26,186.21,2.6862]
[1736617576207,7.17018076,186.26,186.2,1.5321]
[1736617577812,7.17018076,186.24,186.2,4.2185]
[1736617579016,7.17018076,186.22,186.2,1.5321]
[1736617579211,7.17018076,186.22,186.15,80.12372294]
[1736617579405,7.17018076,186.22,186.15,87.2939037]
[1736617580711,7.17018076,186.2,186.17,2.6869]
[1736617581209,7.17018076,186.2,186.15,87.2939037]
[1736617581414,7.17018076,186.2,186.17,2.6868]
[1736617582216,7.17018076,186.2,186.18,2.6867]
[1736617586514,7.17018076,186.2,186.15,80.12372294]
[1736617586716,7.17018076,186.18,186.15,2.6871]
[1736617586912,7.17018076,186.16,186.13,1.6833]
[1736617587114,7.17018076,186.14,186.13,1.6833]
[1736617587314,7.17018076,186.14,186.12,2.6876]
[1736617587617,7.17018076,186.14,186.09,3.1729]
[1736617587819,7.17018076,186.12,186.09,3.1729]
[1736617588018,7.17018076,186.12,186.1,2.6878]
[1736617588218,7.17018076,186.12,186.04,1.6339]
[1736617588415,7.17018076,186.1,186.04,3.1906]
[1736617588613,7.17018076,186.1,186.04,10.36078076]
[1736617589313,5.4,186.19,186.04,10.36078076]
[1736617589515,7.17018076,186.11,186.04,10.36078076]
[1736617590116,7.17018076,186.11,186.09,2.688]
[1736617590420,7.17018076,186.13,186.06,7.17018076]
[1736617591715,2.6872,186.15,186.11,2.6877]
[1736617591926,7.17018076,186.15,186.08,7.17018076]
[1736617592615,7.17018076,186.15,186.13,2.6874]
[1736617593217,7.17018076,186.18,186.12,7.17018076]
[1736617593517,7.17018076,186.18,186.13,1.568]
[1736617593708,7.17018076,186.18,186.13,3.1099]
[1736617594515,7.17018076,186.18,186.16,2.687]
[1736617595221,7.17018076,186.2,186.17,2.6869]
[1736617598720,7.17018076,186.18,186.15,2.6871]
[1736617599417,7.17018076,186.18,186.16,2.687]
[1736617602318,7.17018076,186.18,186.15,2.6871]
[1736617602622,7.17018076,186.18,186.13,3.1099]
[1736617602822,7.17018076,186.16,186.13,3.1099]
[1736617604123,7.17018076,186.16,186.14,2.6872]
[1736617607627,7.17018076,186.16,186.13,3.1099]
[1736617607822,7.17018076,186.18,186.15,2.6872]
[1736617608828,7.17018076,186.18,186.13,3.1099]
[1736617609026,7.17018076,186.18,186.16,2.687]
[1736617611324,125.1427362,186.21,186.13,10.28008076]
[1736617611325,127.8290362,186.21,186.13,10.28008076]
[1736617611528,7.17018076,186.2,186.13,10.28008076]
[1736617611930,125.1427362,186.21,186.13,10.28008076]
[1736617612132,7.17018076,186.2,186.13,10.28008076]
[1736617612929,125.1427362,186.21,186.15,7.17018076]
[1736617613332,125.1427362,186.21,186.16,2.6869]
[1736617613635,125.1427362,186.21,186.15,7.17018076]
[1736617614031,125.1427362,186.21,186.19,2.6866]
[1736617615137,2.6861,186.23,186.19,2.6866]
[1736617615349,7.17018076,186.22,186.19,2.6866]
[1736617615544,7.17018076,186.22,186.15,7.17018076]
[1736617615747,7.17018076,186.24,186.2,2.6863]
[1736617616045,7.17018076,186.24,186.17,7.17018076]
[1736617616550,9.85608076,186.24,186.2,2.6864]
[1736617618345,9.85608076,186.24,186.17,7.17018076]
[1736617618545,9.85608076,186.24,186.21,2.6863]